[Event "8th RTU Open 2018"]
[Site "Riga"]
[Date "2018.08.11"]
[Round "8"]
[White "Martin, Julian"]
[Black "Laurusas, Tomas"]
[Result "0-1"]
[ECO "B80"]
[WhiteElo "2392"]
[BlackElo "2463"]
[Annotator "ChessBase"]
[PlyCount "88"]
[EventDate "2018.08.06"]
[EventType "swiss"]
[EventCountry "LAT"]
[SourceTitle "playchess.com"]
[Source "ChessBase"]
[SourceQuality "1"]
[TimeControl "5400+30"]

1. e4 {[%emt 0:03:32]} c5 {[%emt 0:00:00]} 2. Nf3 {[%emt 0:00:22]} e6 {[%emt 0:00:00]} 3. d4 {[%emt 0:00:05]} cxd4 {[%emt 0:00:00]} 4. Nxd4 {[%emt 0:00:04]} Nf6 {[%emt 0:00:00]} 5. Nc3 {[%emt 0:00:05]} d6 {[%emt 0:00:00]} 6. g3 {[%emt 0:01:26]} Bd7 {[%emt 0:00:04]} 7. Bg2 {[%emt 0:01:12]} Nc6 {[%emt 0:00:05]} 8. Ndb5 {[%emt 0:01:00]} Qb8 {[%emt 0:00:15]} 9. O-O {[%emt 0:00:07]} a6 {[%emt 0:01:30]} 10. Nd4 {[%emt 0:00:17]} Be7 {[%emt 0:00:10]} 11. Nxc6 {[%emt 0:02:15]} Bxc6 {[%emt 0:00:36]} 12. a4 {[%emt 0:00:05]} b5 {[%emt 0:08:02]} 13. axb5 {[%emt 0:27:13]} axb5 {[%emt 0:00:12]} 14. Rxa8 {[%emt 0:00:27]} Qxa8 {[%emt 0:03:04]} 15. Qd3 {[%emt 0:00:24]} Qb7 {[%emt 0:20:16]} 16. Re1 {[%emt 0:29:33]} O-O {[%emt 0:03:57]} 17. Ne2 {[%emt 0:02:06]} Nxe4 {[%emt 0:02:47]} 18. Nd4 {[%emt 0:02:17]} Nxf2 {[%emt 0:00:56]} 19. Qf1 {[%emt 0:03:01]} Bxg2 {[%emt 0:01:59]} 20. Qxg2 {[%emt 0:00:02]} Qxg2+ {[%emt 0:00:15]} 21. Kxg2 {[%emt 0:00:08]} Ng4 {[%emt 0:00:16]} 22. Nxb5 {[%emt 0:00:34]} d5 {[%emt 0:05:08]} 23. Bf4 {[%emt 0:00:29]} g5 {[%emt 0:02:12]} 24. Bc7 {[%emt 0:00:15]} Ra8 {[%emt 0:00:27]} 25. Re2 {[%emt 0:01:10]} Ra1 {[%emt 0:10:30]} 26. Bb6 {[%emt 0:02:57]} Nf6 {[%emt 0:02:56]} 27. b3 {[%emt 0:01:00]} Nd7 {[%emt 0:04:20]} 28. Bd4 {[%emt 0:01:40]} Ra5 {[%emt 0:00:04]} 29. Nc3 {[%emt 0:04:14]} Nb8 {[%emt 0:00:27]} 30. Bb6 Ra6 {[%emt 0:00:03]} 31. Nxd5 {[%emt 0:04:26]} exd5 {[%emt 0:00:16]} 32. Rxe7 {[%emt 0:00:08]} Rxb6 {[%emt 0:00:04]} 33. Re5 {[%emt 0:00:02]} h6 {[%emt 0:02:56]} 34. Rxd5 {[%emt 0:00:04]} Kf8 {[%emt 0:00:04]} 35. h4 {[%emt 0:00:38]} gxh4 {[%emt 0:00:24]} 36. g4 {[%emt 0:00:11]} Ke7 {[%emt 0:00:56]} 37. Kh3 {[%emt 0:00:46]} Nd7 {[%emt 0:00:37]} 38. Rd4 {[%emt 0:00:34]} Rc6 {[%emt 0:01:23]} 39. c4 {[%emt 0:00:58]} Rb6 {[%emt 0:00:08]} 40. Rd3 {[%emt 0:00:05]} Nc5 {[%emt 0:00:04]} 41. Re3+ {[%emt 0:00:06]} Kf6 {[%emt 0:00:06]} 42. Rf3+ {[%emt 0:00:43]} Kg6 {[%emt 0:00:16]} 43. Kxh4 {[%emt 0:00:05]} Rxb3 {[%emt 0:00:57]} 44. Rf5 {[%emt 0:00:14]} Ne6 {[%emt 0:00:25]} 0-1

[Event "8th RTU Open 2018"]
[Site "Riga"]
[Date "2018.08.11"]
[Round "8"]
[White "Krupenski, Juri"]
[Black "Haria, Ravi"]
[Result "1-0"]
[ECO "D31"]
[WhiteElo "2390"]
[BlackElo "2449"]
[Annotator "NA"]
[PlyCount "92"]
[EventDate "2018.08.06"]
[EventType "swiss"]
[EventCountry "LAT"]
[SourceTitle "playchess.com"]
[Source "ChessBase"]
[SourceQuality "1"]
[TimeControl "5400+30"]

1. d4 {[%emt 0:00:00]} e6 {[%emt 0:00:00]} 2. c4 {[%emt 0:00:38]} d5 {[%emt 0:00:00]} 3. Nc3 {[%emt 0:01:31]} c6 {[%emt 0:00:05]} 4. Nf3 {[%emt 0:01:21]} dxc4 {[%emt 0:00:33]} 5. a4 {[%emt 0:01:25]} Bb4 {[%emt 0:00:35]} 6. e3 {[%emt 0:06:05]} b5 {[%emt 0:00:11]} 7. Bd2 {[%emt 0:10:06]} a5 {[%emt 0:00:17]} 8. axb5 {[%emt 0:00:42]} Bxc3 {[%emt 0:00:07]} 9. Bxc3 {[%emt 0:00:14]} cxb5 {[%emt 0:00:06]} 10. b3 {[%emt 0:05:48]} Bb7 {[%emt 0:00:15]} 11. bxc4 {[%emt 0:00:08]} b4 {[%emt 0:00:05]} 12. Bb2 {[%emt 0:00:07]} Nf6 {[%emt 0:00:39]} 13. Bd3 {[%emt 0:00:16]} O-O {[%emt 0:02:41]} 14. O-O {[%emt 0:00:42]} Nbd7 {[%emt 0:00:06]} 15. Qc2 {[%emt 0:03:57]} Qc7 {[%emt 0:02:26]} 16. e4 {[%emt 0:09:19]} e5 {[%emt 0:01:07]} 17. c5 {[%emt 0:04:34]} exd4 {[%emt 0:11:25]} 18. Bxd4 {[%emt 0:00:57]} Qf4 {[%emt 0:04:20]} 19. c6 {[%emt 0:12:24]} Rac8 {[%emt 0:06:11]} 20. Bb5 {[%emt 0:01:16]} b3 {[%emt 1:00:42]} 21. Qxb3 {[%emt 0:06:23]} Bxc6 {[%emt 0:00:07]} 22. Bxc6 {[%emt 0:00:14]} Rxc6 {[%emt 0:00:05]} 23. e5 {[%emt 0:01:23]} Ng4 {[%emt 0:01:54]} 24. Qd5 {[%emt 0:04:51]} Rg6 {[%emt 0:01:47]} 25. h3 {[%emt 0:01:07]} Nh6 {[%emt 0:01:35]} 26. Be3 {[%emt 0:00:05]} Nb6 {[%emt 0:00:06]} 27. Qb7 {[%emt 0:01:55]} Qf5 {[%emt 0:02:47]} 28. Nh4 {[%emt 0:00:22]} Qd7 {[%emt 0:00:44]} 29. Qxd7 {[%emt 0:00:09]} Nxd7 {[%emt 0:00:01]} 30. Nxg6 {[%emt 0:00:12]} hxg6 {[%emt 0:00:06]} 31. Bxh6 {[%emt 0:00:19]} gxh6 {[%emt 0:00:07]} 32. Rxa5 {[%emt 0:00:02]} Re8 {[%emt 0:00:08]} 33. f4 {[%emt 0:00:21]} Kg7 {[%emt 0:00:26]} 34. Rfa1 {[%emt 0:00:49]} g5 {[%emt 0:00:11]} 35. g3 {[%emt 0:02:19]} gxf4 {[%emt 0:01:12]} 36. gxf4 {[%emt 0:00:04]} Kg6 {[%emt 0:00:43]} 37. Ra8 {[%emt 0:01:33]} Re6 {[%emt 0:01:08]} 38. R1a7 {[%emt 0:01:06]} Nc5 {[%emt 0:01:22]} 39. Rg8+ {[%emt 0:01:20]} Kf5 {[%emt 0:00:16]} 40. Rxf7+ {[%emt 0:00:13]} Ke4 {[%emt 0:00:02]} 41. Rf6 {[%emt 0:01:56]} Re7 {[%emt 0:00:02]} 42. Rg3 {[%emt 0:00:59]} Ne6 {[%emt 0:00:58]} 43. Kf2 {[%emt 0:00:47]} h5 {[%emt 0:01:02]} 44. Re3+ {[%emt 0:00:25]} Kd4 {[%emt 0:01:09]} 45. Kf3 {[%emt 0:01:20]} h4 {[%emt 0:00:39]} 46. Re1 {[%emt 0:00:51]} Kd5 {Ke4+} 1-0

[Event "8th RTU Open 2018"]
[Site "Riga"]
[Date "2018.08.11"]
[Round "8"]
[White "Gorbatov, Alexej"]
[Black "Bluebaum, Karl Ernst"]
[Result "1-0"]
[ECO "C07"]
[WhiteElo "2389"]
[BlackElo "2253"]
[Annotator "NA"]
[PlyCount "97"]
[EventDate "2018.08.06"]
[EventType "swiss"]
[EventCountry "LAT"]
[SourceTitle "playchess.com"]
[Source "ChessBase"]
[SourceQuality "1"]
[TimeControl "5400+30"]

1. e4 {[%emt 0:09:11]} e6 {[%emt 0:00:10]} 2. d4 {[%emt 0:00:06]} d5 {[%emt 0:00:08]} 3. Nd2 {[%emt 0:00:06]} c5 {[%emt 0:00:30]} 4. Ngf3 {[%emt 0:04:16]} cxd4 {[%emt 0:00:39]} 5. exd5 {[%emt 0:00:54]} Qxd5 {[%emt 0:00:16]} 6. Bc4 {[%emt 0:00:11]} Qd7 {[%emt 0:00:19]} 7. O-O {[%emt 0:05:05]} Nc6 {[%emt 0:00:42]} 8. Nb3 {[%emt 0:06:14]} a6 {[%emt 0:00:28]} 9. Re1 {[%emt 0:05:40]} Bb4 {[%emt 0:41:26]} 10. Bd2 {[%emt 0:00:21]} Bxd2 {[%emt 0:00:07]} 11. Qxd2 {[%emt 0:00:06]} Nf6 {[%emt 0:00:06]} 12. Qf4 {[%emt 0:09:26]} b5 {[%emt 0:10:50]} 13. Bf1 {[%emt 0:02:53]} O-O {[%emt 0:02:10]} 14. Rad1 {[%emt 0:00:14]} Ra7 {[%emt 0:03:00]} 15. Nbxd4 {[%emt 0:00:45]} Nxd4 {[%emt 0:00:09]} 16. Rxd4 {[%emt 0:01:24]} Qc7 {[%emt 0:00:14]} 17. Qd2 {[%emt 0:01:46]} Bb7 {[%emt 0:00:45]} 18. Ne5 {[%emt 0:00:23]} Raa8 {[%emt 0:09:36]} 19. c4 {[%emt 0:09:29]} Rfd8 {[%emt 0:07:40]} 20. Rd1 {[%emt 0:04:10]} Rxd4 {[%emt 0:01:41]} 21. Qxd4 {[%emt 0:00:02]} bxc4 {[%emt 0:00:39]} 22. Bxc4 {[%emt 0:05:55]} Bd5 {[%emt 0:00:16]} 23. b3 {[%emt 0:01:24]} a5 {[%emt 0:00:27]} 24. h3 {[%emt 0:04:15]} h6 {[%emt 0:01:36]} 25. Rd3 {[%emt 0:03:50]} Rc8 {[%emt 0:00:46]} 26. Rg3 {[%emt 0:00:52]} Nh5 {[%emt 0:02:29]} 27. Rc3 {[%emt 0:01:14]} Nf6 {[%emt 0:00:13]} 28. Rc2 {[%emt 0:00:32]} Qb8 {[%emt 0:02:44]} 29. Bd3 {[%emt 0:02:46]} Rd8 {[%emt 0:03:40]} 30. Qe3 {[%emt 0:03:23]} Qb7 {[%emt 0:00:54]} 31. f3 {[%emt 0:03:10]} Rc8 {[%emt 0:00:21]} 32. Rc5 {[%emt 0:01:30]} Ra8 {[%emt 0:01:31]} 33. Qc1 {[%emt 0:01:50]} Qa7 {[%emt 0:01:56]} 34. Kh1 {[%emt 0:00:04]} Rf8 {[%emt 0:02:25]} 35. Qc2 {[%emt 0:01:40]} Qb8 {[%emt 0:00:29]} 36. Qc3 {[%emt 0:00:52]} a4 {[%emt 0:04:07]} 37. bxa4 {[%emt 0:00:08]} Bxa2 {[%emt 0:00:13]} 38. a5 {[%emt 0:00:55]} Nd5 {[%emt 0:00:43]} 39. Qd4 {[%emt 0:02:05]} f6 {[%emt 0:01:58]} 40. Nd7 {[%emt 0:03:22]} Qg3 {[%emt 0:00:08]} 41. Nxf8 {[%emt 0:00:25]} Nf4 {[%emt 0:00:09]} 42. Bf1 {[%emt 0:00:30]} Kxf8 {[%emt 0:01:32]} 43. a6 {[%emt 0:01:46]} e5 {[%emt 0:00:33]} 44. Qd7 {[%emt 0:03:15]} Kg8 {[%emt 0:00:20]} 45. Rc8+ {[%emt 0:00:12]} Kh7 {[%emt 0:00:28]} 46. Qf5+ {[%emt 0:00:10]} Ng6 {[%emt 0:00:15]} 47. Bd3 {[%emt 0:01:27]} Bf7 {[%emt 0:00:05]} 48. a7 {[%emt 0:00:28]} e4 {[%emt 0:00:04]} 49. a8=Q {[%emt 0:00:57]} 1-0

[Event "8th RTU Open 2018"]
[Site "Riga"]
[Date "2018.08.11"]
[Round "8"]
[White "Krivonosov, Oleg"]
[Black "Jacobs, Florian"]
[Result "1/2-1/2"]
[ECO "E19"]
[WhiteElo "2386"]
[BlackElo "2255"]
[Annotator "NA"]
[PlyCount "81"]
[EventDate "2018.08.06"]
[EventType "swiss"]
[EventCountry "LAT"]
[SourceTitle "playchess.com"]
[Source "ChessBase"]
[SourceQuality "1"]
[TimeControl "5400+30"]

1. Nf3 {[%emt 0:00:00]} Nf6 {[%emt 0:00:00]} 2. c4 {[%emt 0:00:00]} e6 {[%emt 0:00:00]} 3. g3 {[%emt 0:00:02]} a6 {[%emt 0:00:00]} 4. Bg2 {[%emt 0:00:15]} b5 {[%emt 0:00:02]} 5. b3 {[%emt 0:00:13]} c5 {[%emt 0:00:07]} 6. O-O {[%emt 0:00:40]} Bb7 {[%emt 0:00:11]} 7. Nc3 {[%emt 0:00:21]} Qb6 {[%emt 0:00:39]} 8. e3 {[%emt 0:00:30]} Be7 {[%emt 0:01:44]} 9. Qe2 {[%emt 0:01:03]} O-O {[%emt 0:05:47]} 10. Rd1 {[%emt 0:02:25]} b4 {[%emt 0:02:16]} 11. Na4 {[%emt 0:00:38]} Qc7 {[%emt 0:00:06]} 12. d4 {[%emt 0:01:29]} d6 {[%emt 0:00:08]} 13. Bb2 {[%emt 0:02:06]} Nbd7 {[%emt 0:02:47]} 14. dxc5 {[%emt 0:01:21]} Nxc5 {[%emt 0:15:18]} 15. Nxc5 {[%emt 0:01:18]} Qxc5 {[%emt 0:00:05]} 16. Ne1 {[%emt 0:04:34]} Bxg2 {[%emt 0:00:36]} 17. Kxg2 {[%emt 0:00:19]} a5 {[%emt 0:06:13]} 18. Qf3 {[%emt 0:02:18]} Rfc8 {[%emt 0:09:56]} 19. Rac1 {[%emt 0:03:37]} Qc6 {[%emt 0:07:32]} 20. Qxc6 {[%emt 0:02:03]} Rxc6 {[%emt 0:00:03]} 21. Nf3 {[%emt 0:00:39]} Ne8 {[%emt 0:19:55]} 22. Nd4 {[%emt 0:01:30]} Rcc8 {[%emt 0:00:21]} 23. Nb5 {[%emt 0:03:02]} a4 {[%emt 0:03:22]} 24. e4 {[%emt 0:00:53]} axb3 {[%emt 0:03:41]} 25. axb3 {[%emt 0:00:14]} Ra2 {[%emt 0:00:11]} 26. Bd4 {[%emt 0:00:49]} e5 {[%emt 0:02:19]} 27. Be3 {[%emt 0:05:13]} Rca8 {[%emt 0:06:09]} 28. Rd2 {[%emt 0:03:44]} Nf6 {[%emt 0:01:04]} 29. Kf3 {[%emt 0:01:31]} h5 {[%emt 0:05:00]} 30. h3 {[%emt 0:02:29]} Nd7 {[%emt 0:00:46]} 31. Rcd1 {[%emt 0:07:14]} Nc5 {[%emt 0:00:44]} 32. Bxc5 {[%emt 0:00:42]} dxc5 {[%emt 0:00:17]} 33. h4 {[%emt 0:01:16]} g6 {[%emt 0:01:19]} 34. Kg2 {[%emt 0:06:46]} Rxd2 {[%emt 0:01:37]} 35. Rxd2 {[%emt 0:00:09]} f6 {[%emt 0:00:20]} 36. Rd7 {[%emt 0:04:10]} Kf7 {[%emt 0:00:22]} 37. Na7 {[%emt 0:03:17]} Ke6 {[%emt 0:02:02]} 38. Rb7 {[%emt 0:00:46]} Rd8 {[%emt 0:01:35]} 39. Nc6 {[%emt 0:05:23]} Rd7 {[%emt 0:00:05]} 40. Rxd7 {[%emt 0:00:07]} Kxd7 {[%emt 0:00:04]} 41. Nxe7 {[%emt 0:00:05]} 1/2-1/2

[Event "8th RTU Open 2018"]
[Site "Riga"]
[Date "2018.08.11"]
[Round "8"]
[White "Jackson, James P"]
[Black "Saulespurens, Valdis"]
[Result "1-0"]
[ECO "B45"]
[WhiteElo "2380"]
[BlackElo "2254"]
[Annotator "NA"]
[PlyCount "51"]
[EventDate "2018.08.06"]
[EventType "swiss"]
[EventCountry "LAT"]
[SourceTitle "playchess.com"]
[Source "ChessBase"]
[SourceQuality "1"]
[TimeControl "5400+30"]

1. e4 {[%emt 0:00:00]} c5 {[%emt 0:04:37]} 2. Nf3 {[%emt 0:00:00]} e6 {[%emt 0:00:05]} 3. d4 {[%emt 0:00:00]} cxd4 {[%emt 0:00:04]} 4. Nxd4 {[%emt 0:00:00]} Nc6 {[%emt 0:00:46]} 5. Nc3 {[%emt 0:00:02]} Nf6 {[%emt 0:01:20]} 6. Ndb5 {[%emt 0:00:46]} d6 {[%emt 0:04:10]} 7. Bf4 {[%emt 0:00:06]} Ne5 {[%emt 0:10:07]} 8. Qd4 {[%emt 0:10:06]} Be7 {[%emt 0:03:24]} 9. Nxd6+ {[%emt 0:01:13]} Bxd6 {[%emt 0:00:27]} 10. Bxe5 {[%emt 0:00:06]} Bxe5 {[%emt 0:00:10]} 11. Qxe5 {[%emt 0:00:03]} O-O {[%emt 0:00:13]} 12. f3 {[%emt 0:04:01]} Qb6 {[%emt 0:00:11]} 13. O-O-O {[%emt 0:00:41]} Bd7 {[%emt 0:00:16]} 14. Qd4 {[%emt 0:00:40]} Qc7 {[%emt 0:00:07]} 15. e5 {[%emt 0:00:21]} Nd5 {[%emt 0:00:04]} 16. Nxd5 {[%emt 0:01:20]} exd5 {[%emt 0:00:04]} 17. Bd3 {[%emt 0:03:26]} Rfc8 {[%emt 0:00:25]} 18. Qxd5 {[%emt 0:02:45]} Be6 {[%emt 0:01:15]} 19. Qe4 {[%emt 0:00:54]} g6 {[%emt 0:00:07]} 20. Kb1 {[%emt 0:01:24]} Qa5 {[%emt 0:03:09]} 21. b3 {[%emt 0:06:56]} b5 {[%emt 0:02:29]} 22. h4 {[%emt 0:01:30]} Rab8 {[%emt 0:01:16]} 23. h5 {[%emt 0:03:41]} Rc4 {[%emt 0:00:30]} 24. Qe1 {[%emt 0:02:29]} Qa3 {[%emt 0:00:25]} 25. Bxc4 {[%emt 0:01:01]} bxc4 {[%emt 0:00:08]} 26. Qh4 {[%emt 0:00:24]} 1-0

[Event "8th RTU Open 2018"]
[Site "Riga"]
[Date "2018.08.11"]
[Round "8"]
[White "Sirosh, Ilja"]
[Black "Makoveev, Ilya"]
[Result "1/2-1/2"]
[ECO "A40"]
[WhiteElo "2372"]
[BlackElo "2249"]
[Annotator "NA"]
[PlyCount "117"]
[EventDate "2018.08.06"]
[EventType "swiss"]
[EventCountry "LAT"]
[SourceTitle "playchess.com"]
[Source "ChessBase"]
[SourceQuality "1"]
[TimeControl "5400+30"]

1. d4 {[%emt 0:00:00]} Nf6 {[%emt 0:00:00]} 2. c4 {[%emt 0:00:00]} e6 {[%emt 0:00:17]} 3. g3 {[%emt 0:00:00]} d5 {[%emt 0:00:26]} 4. Nf3 {[%emt 0:00:00]} Bb4+ {[%emt 0:00:32]} 5. Bd2 {[%emt 0:00:06]} Be7 {[%emt 0:00:10]} 6. Bg2 {[%emt 0:00:07]} O-O {[%emt 0:00:18]} 7. O-O {[%emt 0:00:06]} c6 {[%emt 0:00:43]} 8. Qc2 {[%emt 0:07:04]} b6 {[%emt 0:00:54]} 9. Rd1 {[%emt 0:01:21]} Nbd7 {[%emt 0:02:09]} 10. b3 {[%emt 0:00:59]} Ba6 {[%emt 0:00:31]} 11. Bc1 {[%emt 0:02:03]} Rc8 {[%emt 0:00:30]} 12. Bb2 {[%emt 0:08:28]} c5 {[%emt 0:07:32]} 13. Nc3 {[%emt 0:28:32]} dxc4 {[%emt 0:12:09]} 14. d5 {[%emt 0:02:12]} exd5 {[%emt 0:09:11]} 15. Nxd5 {[%emt 0:00:09]} Nxd5 {[%emt 0:04:27]} 16. Rxd5 {[%emt 0:00:07]} Bb7 {[%emt 0:07:18]} 17. Rd2 {[%emt 0:01:30]} Qc7 {[%emt 0:06:05]} 18. bxc4 {[%emt 0:02:43]} Rcd8 {[%emt 0:05:39]} 19. Rad1 {[%emt 0:09:29]} Bf6 {[%emt 0:04:53]} 20. Bh3 {[%emt 0:13:16]} Bc6 {[%emt 0:02:06]} 21. Bxd7 {[%emt 0:01:24]} Rxd7 {[%emt 0:01:28]} 22. Rxd7 {[%emt 0:00:10]} Bxd7 {[%emt 0:00:08]} 23. Bxf6 {[%emt 0:00:05]} gxf6 {[%emt 0:00:04]} 24. Rd5 {[%emt 0:02:00]} Kg7 {[%emt 0:03:17]} 25. Qd2 {[%emt 0:07:06]} Bg4 {[%emt 0:01:03]} 26. Nh4 {[%emt 0:00:33]} h6 {[%emt 0:01:07]} 27. Ng2 {[%emt 0:07:49]} Be6 {[%emt 0:04:05]} 28. Rh5 {[%emt 0:00:06]} Rh8 {[%emt 0:00:06]} 29. Ne3 {[%emt 0:00:36]} Qd7 {[%emt 0:00:46]} 30. Nd5 {[%emt 0:01:09]} Bxd5 {[%emt 0:01:32]} 31. Rxd5 {[%emt 0:00:08]} Qg4 {[%emt 0:00:36]} 32. Qd3 {[%emt 0:01:07]} Re8 {[%emt 0:01:05]} 33. f3 {[%emt 0:00:06]} Qg6 {[%emt 0:03:19]} 34. e4 {[%emt 0:00:57]} Re5 {[%emt 0:01:14]} 35. Kg2 {[%emt 0:02:36]} h5 {[%emt 0:01:04]} 36. h4 {[%emt 0:00:16]} Qh6 {[%emt 0:01:34]} 37. f4 {[%emt 0:01:15]} Re7 {[%emt 0:00:51]} 38. Qf3 {[%emt 0:02:26]} Qg6 {[%emt 0:00:35]} 39. Rf5 {[%emt 0:00:12]} Re8 {[%emt 0:03:03]} 40. Qc3 {[%emt 0:00:41]} Kg8 {[%emt 0:00:33]} 41. Qd3 {[%emt 0:00:23]} Kf8 {[%emt 0:02:16]} 42. Qd5 {[%emt 0:01:05]} Kg7 {[%emt 0:01:47]} 43. Qd3 {[%emt 0:00:31]} Kf8 {[%emt 0:00:09]} 44. Qd6+ {[%emt 0:00:23]} Kg7 {[%emt 0:00:18]} 45. Qd5 {[%emt 0:00:03]} Kf8 {[%emt 0:01:57]} 46. a4 {[%emt 0:00:42]} Kg7 {[%emt 0:00:28]} 47. Qd3 {[%emt 0:00:31]} Kf8 {[%emt 0:00:08]} 48. Qd6+ {[%emt 0:00:38]} Kg7 {[%emt 0:00:12]} 49. Qd5 {[%emt 0:00:01]} Kg8 {[%emt 0:01:16]} 50. Qd3 {[%emt 0:01:01]} Kf8 {[%emt 0:00:16]} 51. Qf3 {[%emt 0:00:26]} Kg7 {[%emt 0:00:24]} 52. Kf2 {[%emt 0:00:09]} Kg8 {[%emt 0:01:12]} 53. Qd3 {[%emt 0:00:43]} Kf8 {[%emt 0:00:07]} 54. Qf3 {[%emt 0:00:51]} Kg7 {[%emt 0:00:24]} 55. Qc3 {[%emt 0:00:25]} Kg8 {[%emt 0:00:30]} 56. Qd3 {[%emt 0:00:37]} Kf8 {[%emt 0:00:13]} 57. Qd6+ {[%emt 0:00:31]} Kg7 {[%emt 0:00:12]} 58. Qd5 {[%emt 0:00:16]} Kg8 {[%emt 0:00:24]} 59. Qd3 {[%emt 0:00:46]} 1/2-1/2

[Event "8th RTU Open 2018"]
[Site "Riga"]
[Date "2018.08.11"]
[Round "8"]
[White "Shishkov, Andrei"]
[Black "Pavlov, Sergey"]
[Result "0-1"]
[ECO "E32"]
[WhiteElo "2370"]
[BlackElo "2003"]
[Annotator "NA"]
[PlyCount "74"]
[EventDate "2018.08.06"]
[EventType "swiss"]
[EventCountry "LAT"]
[SourceTitle "playchess.com"]
[Source "ChessBase"]
[SourceQuality "1"]
[TimeControl "5400+30"]

1. d4 {[%emt 0:00:00]} Nf6 {[%emt 0:00:00]} 2. c4 {[%emt 0:00:00]} e6 {[%emt 0:00:06]} 3. Nc3 {[%emt 0:00:00]} Bb4 {[%emt 0:00:10]} 4. Qc2 {[%emt 0:00:00]} b6 {[%emt 0:00:24]} 5. e4 {[%emt 0:00:18]} c5 {[%emt 0:00:20]} 6. e5 {[%emt 0:00:35]} cxd4 {[%emt 0:00:27]} 7. a3 {[%emt 0:00:29]} Bxc3+ {[%emt 0:00:25]} 8. bxc3 {[%emt 0:00:04]} Ng8 {[%emt 0:00:13]} 9. cxd4 {[%emt 0:00:26]} Bb7 {[%emt 0:00:21]} 10. Bb2 {[%emt 0:01:14]} Ne7 {[%emt 0:02:50]} 11. Ne2 {[%emt 0:00:40]} Nbc6 {[%emt 0:01:23]} 12. Ng3 {[%emt 0:03:29]} Rc8 {[%emt 0:00:58]} 13. Bc3 {[%emt 0:01:19]} d5 {[%emt 0:07:25]} 14. exd6 {[%emt 0:01:13]} Qxd6 {[%emt 0:00:26]} 15. Ne4 {[%emt 0:21:36]} Qf4 {[%emt 0:00:33]} 16. Bd3 {[%emt 0:00:45]} O-O {[%emt 0:08:00]} 17. Qd2 {[%emt 0:12:18]} Qxd2+ {[%emt 0:07:01]} 18. Nxd2 {[%emt 0:00:06]} Nxd4 {[%emt 0:16:16]} 19. Bxd4 {[%emt 0:02:41]} Rfd8 {[%emt 0:04:45]} 20. Bxb6 {[%emt 0:05:34]} axb6 {[%emt 0:05:45]} 21. Ke2 {[%emt 0:00:33]} Bxg2 {[%emt 0:02:19]} 22. Rhg1 {[%emt 0:00:22]} Bh3 {[%emt 0:02:18]} 23. Rab1 {[%emt 0:02:58]} Rc6 {[%emt 0:02:13]} 24. Rb3 {[%emt 0:05:39]} Bf5 {[%emt 0:02:21]} 25. Bxf5 {[%emt 0:12:10]} Nxf5 {[%emt 0:01:04]} 26. Rd3 {[%emt 0:00:05]} Nd4+ {[%emt 0:04:27]} 27. Kd1 {[%emt 0:02:56]} e5 {[%emt 0:09:06]} 28. Re1 {[%emt 0:02:25]} f6 {[%emt 0:00:47]} 29. f4 {[%emt 0:00:32]} exf4 {[%emt 0:06:15]} 30. Re4 {[%emt 0:00:24]} Rcd6 {[%emt 0:00:42]} 31. Rxf4 {[%emt 0:00:16]} Nb3 {[%emt 0:02:55]} 32. Rxb3 {[%emt 0:00:26]} Rxd2+ {[%emt 0:00:07]} 33. Kc1 {[%emt 0:00:23]} Rxh2 {[%emt 0:05:12]} 34. Rxb6 {[%emt 0:00:04]} h5 {[%emt 0:03:17]} 35. Rb2 {[%emt 0:05:12]} Rxb2 {[%emt 0:01:05]} 36. Kxb2 {[%emt 0:00:01]} Kf7 {[%emt 0:00:08]} 37. c5 {[%emt 0:00:14]} g5 {[%emt 0:00:24]} 0-1

[Event "8th RTU Open 2018"]
[Site "Riga"]
[Date "2018.08.11"]
[Round "8"]
[White "Stark, Lars"]
[Black "Severina, Maria"]
[Result "1-0"]
[ECO "A28"]
[WhiteElo "2368"]
[BlackElo "2242"]
[Annotator "NA"]
[PlyCount "123"]
[EventDate "2018.08.06"]
[EventType "swiss"]
[EventCountry "LAT"]
[SourceTitle "playchess.com"]
[Source "ChessBase"]
[SourceQuality "1"]
[TimeControl "5400+30"]

1. c4 {[%emt 0:00:00]} e5 {[%emt 0:04:37]} 2. Nc3 {[%emt 0:00:00]} Nf6 {[%emt 0:00:10]} 3. Nf3 {[%emt 0:00:00]} Nc6 {[%emt 0:00:04]} 4. e3 {[%emt 0:00:00]} Bb4 {[%emt 0:00:05]} 5. Qc2 {[%emt 0:00:00]} Bxc3 {[%emt 0:00:15]} 6. Qxc3 {[%emt 0:01:42]} Qe7 {[%emt 0:00:20]} 7. d4 {[%emt 0:00:45]} Ne4 {[%emt 0:01:06]} 8. Qd3 {[%emt 0:00:04]} exd4 {[%emt 0:00:04]} 9. Nxd4 {[%emt 0:00:13]} Nc5 {[%emt 0:00:07]} 10. Qd1 {[%emt 0:00:32]} Nxd4 {[%emt 0:00:41]} 11. Qxd4 {[%emt 0:00:17]} O-O {[%emt 0:00:12]} 12. Be2 {[%emt 0:02:31]} b6 {[%emt 0:04:54]} 13. Bf3 {[%emt 0:05:44]} Bb7 {[%emt 0:00:07]} 14. Bxb7 {[%emt 0:01:56]} Nxb7 {[%emt 0:00:02]} 15. O-O {[%emt 0:00:10]} Nc5 {[%emt 0:06:37]} 16. Rd1 {[%emt 0:01:00]} a5 {[%emt 0:07:33]} 17. Bd2 {[%emt 0:02:46]} f5 {[%emt 0:10:59]} 18. Bc3 {[%emt 0:02:27]} Rae8 {[%emt 0:06:30]} 19. b3 {[%emt 0:00:32]} Qf7 {[%emt 0:04:41]} 20. f3 {[%emt 0:06:54]} Re7 {[%emt 0:03:52]} 21. Be1 {[%emt 0:08:16]} Rfe8 {[%emt 0:05:33]} 22. Bf2 {[%emt 0:01:56]} h6 {[%emt 0:00:55]} 23. Rab1 {[%emt 0:00:23]} Re6 {[%emt 0:05:53]} 24. a3 {[%emt 0:11:52]} Rd6 {[%emt 0:00:40]} 25. Qc3 {[%emt 0:00:18]} Rxd1+ {[%emt 0:00:14]} 26. Rxd1 {[%emt 0:00:05]} d6 {[%emt 0:00:09]} 27. Rb1 {[%emt 0:10:26]} Nd7 {[%emt 0:00:56]} 28. Qd4 {[%emt 0:01:54]} Ne5 {[%emt 0:06:58]} 29. a4 {[%emt 0:02:56]} Nd7 {[%emt 0:00:20]} 30. Be1 {[%emt 0:00:59]} Qe6 {[%emt 0:01:50]} 31. Kf2 {[%emt 0:00:31]} Nc5 {[%emt 0:03:59]} 32. Bc3 {[%emt 0:00:21]} Qf7 {[%emt 0:01:47]} 33. Kg1 {[%emt 0:07:50]} Qe7 {[%emt 0:01:00]} 34. Qd5+ {[%emt 0:01:18]} Qe6 {[%emt 0:02:05]} 35. Qxe6+ {[%emt 0:02:21]} Rxe6 {[%emt 0:00:19]} 36. Bd4 {[%emt 0:01:31]} Nd3 {[%emt 0:00:34]} 37. Rd1 {[%emt 0:00:20]} Nb4 {[%emt 0:00:10]} 38. Kf2 {[%emt 0:00:47]} Nc2 {[%emt 0:03:22]} 39. Rd2 {[%emt 0:00:19]} Nxd4 {[%emt 0:00:04]} 40. Rxd4 {[%emt 0:00:43]} Kf7 {[%emt 0:00:25]} 41. Rd5 {[%emt 0:05:09]} Re5 {[%emt 0:00:41]} 42. f4 {[%emt 0:02:46]} Rxd5 {[%emt 0:00:37]} 43. cxd5 {[%emt 0:00:06]} c6 {[%emt 0:06:43]} 44. dxc6 {[%emt 0:03:22]} Ke7 {[%emt 0:00:04]} 45. Ke2 {[%emt 0:00:52]} Kd8 {[%emt 0:06:18]} 46. Kd3 {[%emt 0:00:05]} Kc7 {[%emt 0:00:03]} 47. e4 {[%emt 0:02:32]} g6 {[%emt 0:00:50]} 48. Kd4 {[%emt 0:05:02]} Kxc6 {[%emt 0:01:51]} 49. e5 {[%emt 0:01:18]} dxe5+ {[%emt 0:01:06]} 50. Kxe5 {[%emt 0:00:25]} Kc5 {[%emt 0:00:29]} 51. Kf6 {[%emt 0:00:27]} Kb4 {[%emt 0:00:04]} 52. Kxg6 {[%emt 0:00:04]} Kxb3 {[%emt 0:00:02]} 53. g4 {[%emt 0:00:13]} fxg4 {[%emt 0:03:05]} 54. f5 {[%emt 0:00:05]} Kxa4 {[%emt 0:00:04]} 55. f6 {[%emt 0:00:04]} b5 {[%emt 0:01:00]} 56. f7 {[%emt 0:00:03]} b4 {[%emt 0:00:03]} 57. f8=Q {[%emt 0:00:03]} Kb3 {[%emt 0:00:56]} 58. Kf5 {[%emt 0:01:49]} a4 {[%emt 0:02:05]} 59. Ke4 {[%emt 0:00:26]} a3 {[%emt 0:00:39]} 60. Kd3 {[%emt 0:01:17]} h5 {[%emt 0:01:53]} 61. Qf7+ {[%emt 0:00:26]} Kb2 {[%emt 0:00:10]} 62. Qf2+ {[%emt 0:00:29]} 1-0